fUST/lending_fUST_20250421
["ID","MTS","AMOUNT","RATE_DAILY","PERIOD"]
[358464498,1745179838443,-500.0,0.00016573,2]
[358464500,1745179838453,-500.0,0.00016573,2]
[358464503,1745179838463,-500.0,0.00016573,2]
[358464505,1745179838472,-500.0,0.00016573,2]
[358464507,1745179838482,-500.0,0.00016573,2]
[358464509,1745179838491,-500.0,0.00016573,2]
[358464511,1745179838500,-500.0,0.00016573,2]
[358464513,1745179838510,-500.0,0.00016573,2]
[358464515,1745179838521,-500.7705506,0.00016579,2]
[358464517,1745179838530,-500.0,0.00016579,2]
[358464519,1745179838540,-260.18070285,0.00016579,2]
[358464521,1745179838549,-628.90698989,0.00016579,2]
[358464523,1745179838558,-257.92785511,0.00016579,2]
[358464525,1745179838568,-500.0,0.00016579,2]
[358464527,1745179838577,-500.0,0.00016579,2]
[358464529,1745179838587,-500.0,0.00016579,2]
[358464531,1745179838596,-500.0,0.00016579,2]
[358464533,1745179838605,-500.0,0.00016579,2]
[358464535,1745179838615,-500.0,0.00016579,2]
[358464537,1745179838624,-500.0,0.00016579,2]
[358464539,1745179838634,-500.0,0.00016579,2]
[358464541,1745179838643,-500.0,0.00016579,2]
[358464543,1745179838652,-500.0,0.00016579,2]
[358464545,1745179838662,-500.0,0.00016579,2]
[358464547,1745179838671,-500.0,0.00016579,2]
[358464549,1745179838680,-500.0,0.00016579,2]
[358464551,1745179838689,-500.0,0.00016579,2]
[358464553,1745179838699,-500.0,0.00016579,2]
[358464555,1745179838709,-500.0,0.00016579,2]
[358464558,1745179838718,-383.87841282,0.00016579,2]
[358464560,1745179838728,-500.0,0.00016579,2]
[358464562,1745179838737,-500.0,0.00016579,2]
[358464564,1745179838746,-500.0,0.00016579,2]
[358464566,1745179838756,-500.0,0.00016579,2]
[358464568,1745179838765,-500.0,0.00016579,2]
[358464570,1745179838774,-500.0,0.00016579,2]
[358464572,1745179838783,-500.0,0.00016579,2]
[358464574,1745179838793,-500.0,0.00016579,2]
[358464576,1745179838802,-500.0,0.00016579,2]
[358464578,1745179838811,-500.0,0.00016579,2]
[358464580,1745179838821,-500.0,0.00016579,2]
[358464582,1745179838831,-500.0,0.00016579,2]
[358464584,1745179838843,-500.0,0.00016579,2]
[358464586,1745179838853,-500.0,0.00016579,2]
[358464588,1745179838862,-500.0,0.00016579,2]
[358464590,1745179838872,-500.0,0.00016579,2]
[358464592,1745179838882,-500.0,0.00016579,2]
[358464594,1745179838892,-500.0,0.00016579,2]
[358464596,1745179838901,-500.0,0.00016579,2]
[358464598,1745179838910,-500.0,0.00016579,2]
[358464600,1745179838920,-500.0,0.00016579,2]
[358464602,1745179838929,-500.0,0.00016579,2]
[358464604,1745179838938,-500.0,0.00016579,2]
[358464625,1745179839119,-500.0,0.00016579,2]
[358464628,1745179839136,-486.1787762,0.00016579,2]
[358464630,1745179839146,-500.0,0.00016579,2]
[358464632,1745179839155,-500.0,0.00016579,2]
[358464634,1745179839165,-32797.60531167,0.00016581,2]
[358464636,1745179839174,-32797.60531167,0.00016618,2]
[358464638,1745179839183,-32797.60531167,0.00016655,2]
[358464640,1745179839192,-151.0,0.00016662,2]
[358464642,1745179839202,-500.7034327,0.00016673,2]
[358464644,1745179839211,-281.69311386,0.00016673,2]
[358464646,1745179839220,-160.19494998,0.00016673,2]
[358464648,1745179839231,-500.0,0.00016673,2]
[358464650,1745179839240,-620.07675614,0.00016673,2]
[358464653,1745179839250,-500.0,0.00016673,2]
[358464655,1745179839260,-594.64551039,0.00016673,2]
[358464657,1745179839269,-500.0,0.00016673,2]
[358464659,1745179839278,-407.96540309,0.00016673,2]
[358464661,1745179839288,-500.0,0.00016673,2]
[358464663,1745179839299,-335.53007672,0.00016673,2]
[358464665,1745179839308,-463.88842446,0.00016673,2]
[358464667,1745179839318,-500.0,0.00016673,2]
[358464669,1745179839327,-24322.8106316,0.00016755,2]
[358464671,1745179839340,-823.544997,0.00016755,2]
[358464674,1745179839360,-3134.78542588,0.00016755,2]
[358464676,1745179839371,-820.89,0.00016755,2]
[358464679,1745179839387,-4652.80131492,0.00016755,2]
[358464681,1745179839399,-1422.68,0.00016755,2]
[358464684,1745179839411,-3095.53468668,0.00016755,2]
[358464686,1745179839422,-19797.27643533,0.00016755,2]
[358464752,1745179840642,-806.599804,0.00016755,2]
[358464769,1745179843224,-94977.81276019,0.00016755,2]
[358464770,1745179843234,-151.0,0.00016755,2]
[358464771,1745179843244,-151.0,0.00016755,2]
[358464772,1745179843254,-151.0,0.00016755,2]
[358464773,1745179843263,-151.0,0.00016755,2]
[358464774,1745179843273,-151.0,0.00016755,2]
[358464775,1745179843284,-151.0,0.00016755,2]
[358464776,1745179843293,-155.586339,0.00016755,2]
[358464777,1745179843303,-207.4,0.0001676,2]
[358464778,1745179843312,-500.0,0.00016773,2]
[358464779,1745179843322,-467.85655112,0.00016773,2]
[358464780,1745179843332,-151.0,0.00016799,2]
[358464782,1745179843342,-420.0,0.00016839,2]
[358464784,1745179843352,-420.0,0.0001684,2]
[358464787,1745179843361,-500.0,0.00016933,2]
[358464790,1745179843371,-198.0,0.00016936,2]
[358464792,1745179843380,-500.0,0.0001707,2]
[358464793,1745179843390,-402.0,0.00017193,2]
[358464794,1745179843399,-502.36178073,0.00017207,2]
[358464795,1745179843409,-197.598,0.00017254,2]
[358464796,1745179843419,-420.0,0.00017428,2]
[358464797,1745179843428,-707.0,0.00017441,2]
[358464798,1745179843438,-227.544,0.00017666,2]
[358464799,1745179843448,-317.0,0.00018,2]
[358464800,1745179843458,-7744.98985896,0.000182,2]
[358464801,1745179843468,-7744.9898587,0.000182,2]
[358464802,1745179843478,-587.0,0.00018422,2]
[358464803,1745179843488,-587.0,0.00018423,2]
[358464804,1745179843497,-1718.43522261,0.000189,2]
[358464805,1745179843507,-7744.9898587,0.000189,2]
[358464806,1745179843517,-1387.5280361,0.00018904,2]
[358464807,1745179843526,-160.0,0.00018985,2]
[358464808,1745179843536,-160.0,0.00018985,2]
[358464809,1745179843545,-12565.32410885,0.00018985,2]
[358464810,1745179843555,-160.0,0.00018985,2]
[358464811,1745179843564,-160.0,0.00018985,2]
[358464812,1745179843574,-839.54484285,0.00018985,2]
[358464813,1745179843584,-420.58168056,0.00018985,2]
[358464814,1745179843594,-160.0,0.00018985,2]
[358464815,1745179843603,-160.0,0.00018985,2]
[358464816,1745179843613,-587.0,0.00019153,2]
[358464817,1745179843623,-500.0,0.00019173,2]
[358464818,1745179843633,-248.01357044,0.00019178,2]
[358464819,1745179843642,-500.0,0.00019178,2]
[358464820,1745179843651,-500.0,0.00019178,2]
[358464821,1745179843660,-500.0,0.00019178,2]
[358464822,1745179843670,-500.0,0.00019178,2]
[358464823,1745179843679,-500.0,0.00019178,2]
[358464824,1745179843689,-500.0,0.00019178,2]
[358464825,1745179843698,-500.0,0.00019178,2]
[358464826,1745179843708,-500.0,0.00019178,2]
[358464827,1745179843717,-500.0,0.00019178,2]
[358464828,1745179843727,-500.0,0.00019178,2]
[358464829,1745179843736,-500.0,0.00019178,2]
[358464830,1745179843745,-500.0,0.00019178,2]
[358464831,1745179843755,-500.0,0.00019178,2]
[358464832,1745179843764,-500.0,0.00019178,2]
[358464833,1745179843773,-359.0,0.00019178,2]
[358464834,1745179843783,-360.38582683,0.00019178,2]
[358464835,1745179843793,-500.0,0.00019178,2]
[358464836,1745179843802,-500.0,0.00019178,2]
[358464837,1745179843811,-500.0,0.00019178,2]
[358464838,1745179843821,-500.0,0.00019178,2]
[358464839,1745179843831,-500.0,0.00019178,2]
[358464840,1745179843844,-500.0,0.00019178,2]
[358464841,1745179843854,-175.20279506,0.00019178,2]
[358464842,1745179843863,-500.0,0.00019178,2]
[358464843,1745179843872,-500.0,0.00019178,2]
[358464844,1745179843882,-500.0,0.00019178,2]
[358464845,1745179843893,-500.0,0.00019178,2]
[358464846,1745179843902,-369.14508832,0.00019178,2]
[358464847,1745179843911,-500.0,0.00019178,2]
[358464848,1745179843920,-500.0,0.00019178,2]
[358464849,1745179843930,-500.0,0.00019178,2]
[358464850,1745179843939,-502.05179764,0.00019178,2]
[358464851,1745179843949,-500.0,0.00019178,2]
[358464852,1745179843958,-500.0,0.00019178,2]
[358464853,1745179843967,-501.02717197,0.00019178,2]
[358464854,1745179843977,-500.0,0.00019178,2]
[358464855,1745179843986,-500.0,0.00019178,2]
[358464856,1745179843995,-500.0,0.00019178,2]
[358464857,1745179844005,-500.0,0.00019178,2]
[358464858,1745179844014,-500.0,0.00019178,2]
[358464859,1745179844023,-501.0494306,0.00019178,2]
[358464860,1745179844033,-575.66,0.00019178,2]
[358464861,1745179844042,-501.05553608,0.00019178,2]
[358464862,1745179844052,-500.0,0.00019178,2]
[358464863,1745179844061,-500.0,0.00019178,2]
[358464864,1745179844071,-500.0,0.00019178,2]
[358464865,1745179844080,-500.0,0.00019178,2]
[358464866,1745179844090,-500.0,0.00019178,2]
[358464867,1745179844099,-208.65613558,0.00019178,2]
[358464877,1745179846307,-291.34386442,0.00019178,2]
[358464878,1745179846317,-60.24708329,0.00019178,2]
[358464879,1745179846361,-1145.62348174,0.000189,2]
[358464880,1745179846371,-439.75291671,0.00019178,2]
[358464881,1745179846380,-500.0,0.00019178,2]
[358464882,1745179846389,-500.0,0.00019178,2]
[358464883,1745179846399,-494.11801047,0.00019178,2]
[358464884,1745179846408,-500.0,0.00019178,2]
[358464886,1745179846417,-500.0,0.00019178,2]
[358464887,1745179846426,-503.86041588,0.00019178,2]
[358464890,1745179846436,-500.0,0.00019178,2]
[358464892,1745179846446,-500.0,0.00019178,2]
[358464894,1745179846456,-503.82915309,0.00019178,2]
[358464896,1745179846465,-502.0116866,0.00019178,2]
[358464898,1745179846474,-501.8097811,0.00019178,2]
[358464900,1745179846483,-500.0,0.00019178,2]
[358464902,1745179846493,-167.01157647,0.00019178,2]
[358464904,1745179846502,-500.0,0.00019178,2]
[358464906,1745179846511,-500.0,0.00019178,2]
[358464908,1745179846520,-500.0,0.00019178,2]
[358464910,1745179846529,-500.0,0.00019178,2]
[358464911,1745179846538,-500.0,0.00019178,2]
[358464913,1745179846547,-504.19725742,0.00019178,2]
[358464914,1745179846557,-500.0,0.00019178,2]
[358464915,1745179846566,-500.0,0.00019178,2]
[358464917,1745179846576,-501.72949029,0.00019178,2]
[358464918,1745179846585,-500.0,0.00019178,2]
[358464919,1745179846594,-500.0,0.00019178,2]
[358464920,1745179846603,-500.0,0.00019178,2]
[358464921,1745179846613,-503.57994469,0.00019178,2]
[358464922,1745179846623,-500.0,0.00019178,2]
[358464923,1745179846633,-500.0,0.00019178,2]
[358464924,1745179846642,-500.0,0.00019178,2]
[358464925,1745179846651,-500.0,0.00019178,2]
[358464926,1745179846661,-500.0,0.00019178,2]
[358464927,1745179846670,-500.0,0.00019178,2]
[358464928,1745179846679,-500.0,0.00019178,2]
[358464929,1745179846689,-393.53474684,0.00019178,2]
[358464930,1745179871820,250.0,0.00014993,2]
[358464951,1745180870306,-500.0,0.0002,30]
[358464963,1745180888441,-200.0,0.00024336,120]
[358464964,1745180888474,-200.0,0.00024635,120]
[358464965,1745180888509,-35216.26180123,0.00025,120]
[358464966,1745180895158,-153.82,0.000226,31]
[358464967,1745180895197,-153.82,0.000226,31]
[358464968,1745180895233,-153.82,0.000226,31]
[358464969,1745180895271,-153.82,0.000226,31]
[358464970,1745180895309,-153.82,0.000226,31]
[358464971,1745180895348,-153.82,0.000226,31]
[358464972,1745180895529,-153.82,0.000226,31]
[358464973,1745180895567,-153.82,0.000226,31]
[358464974,1745180895602,-153.82,0.000226,31]
[358464975,1745180895635,-157.686137,0.00023075,31]
[358464976,1745180895667,-157.686137,0.00023542,31]
[358464977,1745180895706,-153.82,0.000236,31]
[358464978,1745180895747,-153.82,0.000236,31]
[358464979,1745180895784,-153.82,0.000236,31]
[358464980,1745180895821,-153.82,0.000236,31]
[358464981,1745180895861,-153.82,0.000236,31]
[358464982,1745180895902,-153.82,0.000236,31]
[358464983,1745180895936,-174.417212,0.0002401,31]
[358464984,1745180895970,-157.686137,0.0002401,31]
[358464985,1745180896011,-153.82,0.000246,31]
[358464986,1745180896046,-153.82,0.000246,31]
[358464987,1745180896086,-153.82,0.000246,31]
[358464988,1745180896126,-153.82,0.000246,31]
[358464989,1745180896166,-153.82,0.000246,31]
[358464990,1745180896205,-153.82,0.000246,31]
[358464991,1745180896240,-153.88,0.00025,30]
[358464992,1745180903111,6646.29733758,0.000125,2]
[358465008,1745180953838,157.686137,0.0002401,31]
[358465009,1745180954214,157.686137,0.00023902,31]
[358465039,1745181032711,-9132.4597579,0.00015209,2]
[358465040,1745181032721,-300.0,0.00015449,2]
[358465041,1745181032731,-300.0,0.00015449,2]
[358465042,1745181032741,-990.6824955,0.0001545,2]
[358465043,1745181032751,-1000.0,0.0001548,2]
[358465044,1745181032760,-22948.5759007,0.00015581,2]
[358465045,1745181032770,-607.957699,0.00015978,2]
[358465046,1745181032780,-1996.3172822,0.00016183,2]
[358465047,1745181032790,-155.80117387,0.0001647,2]
[358465048,1745181032800,-584.333609,0.00016569,2]
[358465049,1745181032810,-500.0,0.0001657,2]
[358465050,1745181032819,-500.0,0.0001657,2]
[358465051,1745181032829,-500.0,0.0001657,2]
[358465052,1745181032839,-500.0,0.0001657,2]
[358465053,1745181032850,-500.0,0.0001657,2]
[358465054,1745181032860,-500.0,0.0001657,2]
[358465055,1745181032870,-561.13133538,0.0001657,2]
[358465056,1745181032880,-127.28815684,0.0001657,2]
[358465057,1745181033047,-372.71184316,0.0001657,2]
[358465058,1745181033058,-500.0,0.0001657,2]
[358465059,1745181033067,-500.0,0.0001657,2]
[358465060,1745181033077,-500.0,0.0001657,2]
[358465061,1745181033087,-500.0,0.0001657,2]
[358465062,1745181033097,-500.0,0.0001657,2]
[358465063,1745181033107,-501.00048201,0.0001657,2]
[358465064,1745181033117,-500.0,0.0001657,2]
[358465065,1745181033127,-2873.01296725,0.0001657,2]
[358465066,1745181033136,-2873.01296725,0.0001657,2]
[358465067,1745181033146,-1099.17919259,0.0001657,2]
[358465068,1745181033236,-500.0,0.00016573,2]
[358465069,1745181033246,-417.85433263,0.00016573,2]
[358465070,1745181033256,-472.88437696,0.00016573,2]
[358465071,1745181033265,-500.0,0.00016573,2]
[358465072,1745181033275,-368.25866966,0.00016573,2]
[358465095,1745181038555,-131.74133034,0.00016573,2]
[358465097,1745181038565,-530.92315292,0.00016573,2]
[358465099,1745181038574,-500.0,0.00016573,2]
[358465101,1745181038583,-500.0,0.00016573,2]
[358465103,1745181038593,-500.0,0.00016573,2]
[358465105,1745181038602,-412.65867733,0.00016573,2]
[358465107,1745181038613,-500.0,0.00016573,2]
[358465109,1745181038624,-500.0,0.00016573,2]
[358465111,1745181038634,-500.0,0.00016573,2]
[358465113,1745181038643,-215.41087455,0.00016573,2]
[358465115,1745181038653,-500.0,0.00016573,2]
[358465117,1745181038665,-500.0,0.00016573,2]
[358465120,1745181038675,-500.0,0.00016573,2]
[358465121,1745181038684,-500.0,0.00016573,2]
[358465124,1745181038695,-500.0,0.00016573,2]
[358465125,1745181038704,-500.0,0.00016573,2]
[358465127,1745181038714,-500.0,0.00016573,2]
[358465130,1745181038724,-420.0,0.00016901,2]
[358465132,1745181038733,-420.0,0.00016901,2]
[358465134,1745181038743,-360.25406391,0.00017241,2]
[358465136,1745181038752,-65.95662131,0.00017482,2]
[358465138,1745181038763,-159.37437869,0.00017482,2]
[358465140,1745181038772,-402.0,0.00017602,2]
[358465142,1745181038782,-544.0,0.00017602,2]
[358465144,1745181038791,-707.0,0.00017602,2]
[358465146,1745181038800,-155.80117386,0.00017772,2]
[358465148,1745181038809,-38.22873092,0.000182,2]
[358465150,1745181038821,-663.23739488,0.000182,2]
[358465152,1745181038832,-956.81876369,0.000182,2]
[358465154,1745181038843,-5499.88739955,0.000182,2]
[358465156,1745181038852,-4800.6126005,0.000182,2]
[358465158,1745181038864,-1021.532452,0.000182,2]
[358465161,1745181038875,-1336.02723629,0.000182,2]
[358465163,1745181038884,-587.0,0.00018488,2]
[358465165,1745181038893,-587.0,0.00018488,2]
[358465167,1745181038902,-842.80852816,0.000189,2]
[358465169,1745181038911,-4365.16028476,0.000189,2]
[358465252,1745181040772,-2793.01200403,0.000189,2]
[358465253,1745181040782,-12565.32410885,0.00018948,2]
[358465254,1745181040791,-160.0,0.00018948,2]
[358465255,1745181040800,-155.80117386,0.00019073,2]
[358465256,1745181040809,-75293.07,0.00019078,2]
[358465257,1745181040819,-160.0,0.00019172,2]
[358465258,1745181040828,-160.0,0.00019172,2]
[358465259,1745181040838,-420.58168056,0.00019172,2]
[358465260,1745181040847,-839.54484285,0.00019172,2]
[358465261,1745181040856,-160.0,0.00019172,2]
[358465262,1745181040866,-500.0,0.00019173,2]
[358465263,1745181040875,-151.0,0.00019177,2]
[358465264,1745181040884,-9361.95069317,0.00019178,2]
[358465265,1745181040895,-1226.04132791,0.00019178,2]
[358465266,1745181040908,-810.27166094,0.00019178,2]
[358465292,1745181043354,-468.942,0.00017602,2]
[358465293,1745181043368,-548.00481389,0.00017602,2]
[358465294,1745181043409,-717.62546026,0.00017602,2]
[358465295,1745181043466,-513.42772585,0.00017602,2]
[358465297,1745181043475,-6510.27855683,0.00019178,2]
[358465298,1745181043484,-3029.96301086,0.00019178,3]
[358465299,1745181043493,-500.0,0.00019178,2]
[358465300,1745181043503,-500.0,0.00019178,2]
[358465301,1745181043513,-518.23244624,0.00019178,2]
[358465302,1745181043522,-637.17732046,0.00019178,2]
[358465303,1745181043531,-500.0,0.00019178,2]
[358465308,1745181043720,-500.0,0.00019178,2]
[358465309,1745181043730,-500.0,0.00019178,2]
[358465310,1745181043739,-248.88213999,0.00019178,2]
[358465311,1745181043749,-500.0,0.00019178,2]
[358465312,1745181043758,-500.0,0.00019178,2]
[358465313,1745181043768,-64.61366028,0.00019178,2]
[358465314,1745181043781,-435.38633972,0.00019178,2]
[358465315,1745181043791,-500.0,0.00019178,2]
[358465316,1745181043801,-503.59720062,0.00019178,2]
[358465317,1745181043810,-500.0,0.00019178,2]
[358465318,1745181043820,-500.0,0.00019178,2]
[358465319,1745181043829,-304.92627417,0.00019178,2]
[358465320,1745181043841,-201.08474851,0.00019178,2]
[358465321,1745181043851,-503.62687819,0.00019178,2]
[358465322,1745181043861,-500.0,0.00019178,2]
[358465323,1745181043870,-500.0,0.00019178,2]
[358465324,1745181043880,-385.73633216,0.00019178,2]
[358465325,1745181043892,-115.42416957,0.00019178,2]
[358465326,1745181043902,-637.98932136,0.00019178,2]
[358465327,1745181043911,-500.0,0.00019178,2]
[358465328,1745181043921,-391.25757479,0.00019178,2]
[358465334,1745181046460,-108.74242521,0.00019178,2]
[358465335,1745181046471,-500.0,0.00019178,2]
[358465336,1745181046480,-500.0,0.00019178,2]
[358465337,1745181046489,-458.08123041,0.00019178,2]
[358465338,1745181046516,-41.91876959,0.00019178,2]
[358465339,1745181046525,-500.0,0.00019178,2]
[358465340,1745181046535,-577.60886687,0.00019178,2]
[358465341,1745181046544,-500.0,0.00019178,2]
[358465342,1745181046555,-500.0,0.00019178,2]
[358465343,1745181046566,-500.0,0.00019178,2]
[358465344,1745181046576,-178.73601417,0.00019178,2]
[358465345,1745181046585,-500.0,0.00019178,2]
[358465346,1745181046595,-500.0,0.00019178,2]
[358465347,1745181046605,-500.0,0.00019178,2]
[358465348,1745181046619,-500.0,0.00019178,2]
[358465349,1745181046629,-500.0,0.00019178,2]
[358465350,1745181046639,-500.0,0.00019178,2]
[358465351,1745181046648,-500.0,0.00019178,2]
[358465352,1745181046658,-521.42136203,0.00019178,2]
[358465353,1745181046667,-500.0,0.00019178,2]
[358465354,1745181046677,-500.0,0.00019178,2]
[358465355,1745181046687,-500.0,0.00019178,2]
[358465356,1745181046696,-500.0,0.00019178,2]
[358465357,1745181046706,-151.0,0.00019178,2]
[358465358,1745181046715,-500.0,0.00019178,2]
[358465359,1745181046725,-503.89255439,0.00019178,2]
[358465360,1745181046734,-500.0,0.00019178,2]
[358465361,1745181046747,-500.0,0.00019178,2]
[358465362,1745181046757,-500.0,0.00019178,2]
[358465363,1745181046767,-501.58702789,0.00019178,2]
[358465364,1745181046777,-500.0,0.00019178,2]
[358465365,1745181046786,-500.0,0.00019178,2]
[358465366,1745181046796,-500.0,0.00019178,2]
[358465367,1745181046805,-500.0,0.00019178,2]
[358465368,1745181046814,-500.0,0.00019178,2]
[358465369,1745181046824,-500.0,0.00019178,2]
[358465370,1745181046834,-500.0,0.00019178,2]
[358465371,1745181046843,-503.44754854,0.00019178,2]
[358465372,1745181046852,-500.0,0.00019178,2]
[358465373,1745181046862,-162.98542027,0.00019178,2]
[358465374,1745181046871,-500.0,0.00019178,2]
[358465375,1745181046881,-500.0,0.00019178,2]
[358465376,1745181046890,-539.67392256,0.00019178,2]
[358465377,1745181046900,-500.0,0.00019178,2]
[358465378,1745181046909,-500.0,0.00019178,2]
[358465379,1745181046919,-500.0,0.00019178,2]
[358465380,1745181046929,-500.0,0.00019178,2]
[358465381,1745181046938,-500.0,0.00019178,2]
[358465382,1745181046947,-500.0,0.00019178,2]
[358465383,1745181046957,-500.0,0.00019178,2]
[358465384,1745181046967,-506.08059371,0.00019178,2]
[358465385,1745181046976,-500.0,0.00019178,2]
[358465386,1745181046986,-500.0,0.00019178,2]
[358465387,1745181046995,-500.0,0.00019178,2]
[358465388,1745181047004,-505.48083353,0.00019178,2]
[358465389,1745181047014,-509.21186347,0.00019178,2]
[358465390,1745181047023,-246.76921489,0.00019178,2]
[358465391,1745181047033,-500.0,0.00019178,2]
[358465392,1745181047042,-501.04115794,0.00019178,2]
[358465393,1745181047051,-505.67493771,0.00019178,2]
[358465394,1745181047061,-500.0,0.00019178,2]
[358465395,1745181047071,-502.64389879,0.00019178,2]
[358465396,1745181047082,-500.0,0.00019178,2]
[358465397,1745181047091,-500.0,0.00019178,2]
[358465398,1745181047101,-500.0,0.00019178,2]
[358465399,1745181047111,-500.0,0.00019178,2]
[358465400,1745181047121,-643.03,0.00019178,2]
[358465401,1745181047130,-248.36969655,0.00019178,2]
[358465402,1745181047140,-500.0,0.00019178,2]
[358465403,1745181047150,-500.0,0.00019178,2]
[358465404,1745181047160,-500.0,0.00019178,2]
[358465405,1745181047170,-545.7490967,0.00019178,2]
[358465406,1745181047179,-503.22243909,0.00019178,2]
[358465407,1745181047188,-500.0,0.00019178,2]
[358465408,1745181047198,-106.16964537,0.00019178,2]
[358465409,1745181490243,153.98,0.00025,31]
[358465410,1745181490304,153.98,0.00025,31]
[358465411,1745181490412,153.98,0.000242,31]
[358465412,1745181490474,153.98,0.000242,31]
[358465413,1745181490550,153.98,0.000234,31]
[358465414,1745181490604,153.98,0.000234,31]
[358465415,1745181585342,-431.7232139,0.00015083,2]
[358465416,1745181585371,-250.0,0.00015099,2]
[358465417,1745181585398,-199.9956401,0.0001515,2]
[358465418,1745181585425,-1000.0,0.0001525,2]
[358465419,1745181585452,-199.63388209,0.0001535,2]
[358465420,1745181585479,-529.002145,0.0001541,2]
[358465421,1745181585507,-184.4899656,0.0001593,2]
[358465422,1745181585535,-337.0966198,0.00016041,2]
[358465423,1745181585563,-1929.39965094,0.00016465,2]
[358465424,1745181585590,-243.32056449,0.00016467,2]
[358465425,1745181585618,-300.0,0.00016564,2]
[358465426,1745181585646,-500.0,0.00016565,2]
[358465427,1745181585673,-186.06680806,0.00016565,2]
[358465428,1745181585700,-173.45903726,0.00016565,2]
[358465429,1745181585728,-500.0,0.00016565,2]
[358465430,1745181585755,-196.88061053,0.00016565,2]
[358465431,1745181585784,-500.0,0.00016565,2]
[358465432,1745181585817,-500.0,0.00016565,2]
[358465433,1745181585846,-500.0,0.00016565,2]
[358465434,1745181585873,-500.0,0.00016565,2]
[358465435,1745181585906,-500.0,0.00016565,2]
[358465436,1745181585935,-512.57505643,0.00016565,2]
[358465437,1745181585968,-500.0,0.00016565,2]
[358465438,1745181585998,-500.0,0.00016565,2]
[358465439,1745181586029,-500.0,0.00016565,2]
[358465440,1745181586057,-500.0,0.00016565,2]
[358465441,1745181586089,-500.0,0.00016565,2]
[358465442,1745181586117,-500.0,0.00016565,2]
[358465443,1745181586149,-301.3568058,0.00016565,2]
[358465448,1745182091726,154.15,0.000234,31]
[358465449,1745182091792,154.15,0.000234,31]
[358465450,1745182091852,154.15,0.000234,31]
[358465484,1745182232442,-300.0,0.00015564,2]
[358465486,1745182232452,-300.0,0.00015564,2]
[358465488,1745182232461,-14809.4372192,0.00015565,2]
[358465489,1745182232470,-2638.83504823,0.00016273,2]
[358465490,1745182232479,-255.27209316,0.00016462,2]
[358465491,1745182232488,-571.18837782,0.00016464,2]
[358465492,1745182232497,-480.24676565,0.00016561,2]
[358465493,1745182232506,-500.0,0.00016561,2]
[358465494,1745182232515,-1197.00199877,0.00016561,2]
[358465495,1745182232525,-500.0,0.00016561,2]
[358465496,1745182232534,-289.50383754,0.00016561,2]
[358465497,1745182232543,-1197.00199877,0.00016561,2]
[358465498,1745182232552,-500.0,0.00016561,2]
[358465500,1745182232561,-500.0,0.00016561,2]
[358465502,1745182232570,-500.0,0.00016561,2]
[358465504,1745182232579,-301.25750564,0.00016561,2]
[358465506,1745182232588,-500.0,0.00016561,2]
[358465508,1745182232597,-500.0,0.00016561,2]
[358465510,1745182232607,-500.0,0.00016561,2]
[358465511,1745182232616,-500.0,0.00016561,2]
[358465512,1745182232626,-1197.00199877,0.00016561,2]
[358465513,1745182232635,-500.0,0.00016561,2]